fUSD/lending_fUSD_20250217
["ID","MTS","AMOUNT","RATE_DAILY","PERIOD"]
[353409463,1739818241287,-500.0,0.0001378,2]
[353409465,1739818241296,-500.0,0.0001378,2]
[353409467,1739818241305,-541.8,0.0001378,2]
[353409469,1739818241315,-678.49,0.0001378,2]
[353409471,1739818241324,-620.69,0.0001378,2]
[353409473,1739818241334,-500.0,0.0001378,2]
[353409476,1739818241343,-809.39,0.0001378,2]
[353409477,1739818241352,-500.0,0.0001378,2]
[353409479,1739818241362,-563.77,0.0001378,2]
[353409481,1739818241373,-500.0,0.0001378,2]
[353409483,1739818241383,-500.0,0.0001378,2]
[353409486,1739818241393,-584.35,0.0001378,2]
[353409488,1739818241402,-500.0,0.0001378,2]
[353409490,1739818241414,-531.61,0.0001378,2]
[353409492,1739818241424,-1007.19,0.0001378,2]
[353409494,1739818241434,-959.88,0.0001378,2]
[353409496,1739818241444,-500.0,0.0001378,2]
[353409497,1739818241455,-500.0,0.0001378,2]
[353409500,1739818241464,-500.0,0.0001378,2]
[353409502,1739818241474,-500.0,0.0001378,2]
[353409504,1739818241484,-596.38,0.0001378,2]
[353409506,1739818241495,-532.61,0.0001378,2]
[353409508,1739818241504,-500.0,0.0001378,2]
[353409510,1739818241513,-500.0,0.0001378,2]
[353409512,1739818241522,-1148.98,0.0001378,2]
[353409514,1739818241532,-500.0,0.0001378,2]
[353409516,1739818241541,-654.91,0.0001378,2]
[353409518,1739818241550,-500.0,0.0001378,2]
[353409519,1739818241564,-670.94,0.0001378,2]
[353409521,1739818241573,-500.0,0.0001378,2]
[353409523,1739818241582,-986.68,0.0001378,2]
[353409525,1739818241592,-500.0,0.0001378,2]
[353409527,1739818241601,-709.94,0.0001378,2]
[353409529,1739818241611,-500.0,0.0001378,2]
[353409531,1739818241620,-627.05,0.0001378,2]
[353409533,1739818241630,-616.94,0.0001378,2]
[353409535,1739818241639,-500.0,0.0001378,2]
[353409537,1739818241648,-500.0,0.0001378,2]
[353409539,1739818241657,-500.0,0.0001378,2]
[353409541,1739818241666,-500.0,0.0001378,2]
[353409543,1739818241676,-510.34,0.0001378,2]
[353409545,1739818241685,-500.0,0.0001378,2]
[353409547,1739818241694,-210.09,0.0001378,2]
[353409549,1739818241704,-962.35,0.0001378,2]
[353409551,1739818241713,-500.0,0.0001378,2]
[353409553,1739818241722,-539.97,0.0001378,2]
[353409555,1739818241732,-763.76,0.0001378,2]
[353409557,1739818241742,-500.0,0.0001378,2]
[353409559,1739818241751,-917.81,0.0001378,2]
[353409561,1739818241760,-864.55,0.0001378,2]
[353409563,1739818241769,-625.13,0.0001378,2]
[353409565,1739818241778,-583.43,0.0001378,2]
[353409568,1739818241789,-500.0,0.0001378,2]
[353409570,1739818241799,-532.14,0.0001378,2]
[353409572,1739818241808,-500.0,0.0001378,2]
[353409574,1739818241818,-895.3,0.0001378,2]
[353409576,1739818241827,-500.0,0.0001378,2]
[353409578,1739818241837,-627.25,0.0001378,2]
[353409580,1739818241846,-799.84,0.0001378,2]
[353409582,1739818241856,-500.0,0.0001378,2]
[353409584,1739818241865,-554.84,0.0001378,2]
[353409586,1739818241876,-500.0,0.0001378,2]
[353409588,1739818241885,-500.0,0.0001378,2]
[353409590,1739818241894,-500.0,0.0001378,2]
[353409592,1739818241903,-500.0,0.0001378,2]
[353409594,1739818241912,-500.0,0.0001378,2]
[353409596,1739818241922,-500.0,0.0001378,2]
[353409598,1739818241931,-500.0,0.0001378,2]
[353409600,1739818241939,-577.87,0.0001378,2]
[353409602,1739818241949,-500.0,0.0001378,2]
[353409604,1739818241957,-500.0,0.0001378,2]
[353409606,1739818241966,-370.1,0.0001378,2]
[353409608,1739818241976,-500.0,0.0001378,2]
[353409610,1739818241985,-500.0,0.0001378,2]
[353409612,1739818241994,-500.0,0.0001378,2]
[353409614,1739818242003,-500.0,0.0001378,2]
[353409616,1739818242012,-1059.47,0.0001378,2]
[353409618,1739818242021,-500.0,0.0001378,2]
[353409620,1739818242030,-500.0,0.0001378,2]
[353409622,1739818242040,-500.0,0.0001378,2]
[353409624,1739818242049,-150.0,0.00013786,2]
[353409626,1739818242058,-150.0,0.00013795,2]
[353409627,1739818242068,-1000.0,0.00013798,2]
[353409629,1739818242077,-506.04,0.000138,2]
[353409631,1739818242086,-500.0,0.00013804,2]
[353409633,1739818242095,-1000.0,0.00013841,2]
[353409635,1739818242104,-648.63,0.00013861,2]
[353409637,1739818242114,-877.51,0.00013861,2]
[353409639,1739818242124,-835.55,0.00013861,2]
[353409641,1739818242133,-531.78,0.00013861,2]
[353409643,1739818242142,-500.0,0.00013861,2]
[353409645,1739818242151,-500.0,0.00013861,2]
[353409647,1739818242161,-500.0,0.00013861,2]
[353409649,1739818242171,-267.133275,0.00013861,2]
[353409651,1739818242180,-500.0,0.00013861,2]
[353409653,1739818242189,-500.0,0.00013861,2]
[353409656,1739818242199,-511.66,0.00013861,2]
[353409658,1739818242208,-500.0,0.00013861,2]
[353409660,1739818242218,-237.263123,0.00013861,2]
[353409662,1739818242227,-733.16,0.00013861,2]
[353409665,1739818242238,-509.44,0.00013861,2]
[353409666,1739818242248,-513.78,0.00013861,2]
[353409669,1739818242258,-695.75,0.00013861,2]
[353409673,1739818242268,-2251.93,0.00013861,2]
[353409675,1739818242277,-732.03,0.00013861,2]
[353409678,1739818242286,-500.0,0.00013861,2]
[353409681,1739818242296,-533.48,0.00013861,2]
[353409684,1739818242305,-687.19,0.00013861,2]
[353409688,1739818242315,-556.4,0.00013861,2]
[353409690,1739818242324,-500.0,0.00013861,2]
[353409693,1739818242334,-703.47,0.00013861,2]
[353409695,1739818242343,-500.0,0.00013861,2]
[353409698,1739818242352,-1124.34,0.00013861,2]
[353409702,1739818242363,-520.15,0.00013861,2]
[353409705,1739818242373,-733.4,0.00013861,2]
[353409708,1739818242383,-860.18,0.00013861,2]
[353409713,1739818242392,-500.0,0.00013861,2]
[353409714,1739818242401,-787.46,0.00013861,2]
[353409717,1739818242410,-500.0,0.00013863,2]
[353409720,1739818242422,-500.0,0.00013863,2]
[353409722,1739818242432,-500.0,0.00013863,2]
[353409725,1739818242442,-574.36,0.00013863,2]
[353409726,1739818242452,-500.0,0.00013863,2]
[353409729,1739818242464,-500.0,0.00013863,2]
[353409730,1739818242475,-500.0,0.00013863,2]
[353409732,1739818242485,-500.0,0.00013863,2]
[353409734,1739818242495,-500.0,0.00013863,2]
[353409736,1739818242504,-500.0,0.00013863,2]
[353409744,1739818242655,-500.0,0.00013863,2]
[353409746,1739818242673,-500.0,0.00013863,2]
[353409748,1739818242683,-500.0,0.00013863,2]
[353409750,1739818242692,-500.0,0.00013863,2]
[353409752,1739818242702,-500.0,0.00013863,2]
[353409754,1739818242712,-500.0,0.00013863,2]
[353409756,1739818242720,-500.0,0.00013863,2]
[353409758,1739818242730,-500.0,0.00013863,2]
[353409760,1739818242740,-500.0,0.00013863,2]
[353409762,1739818242751,-500.0,0.00013863,2]
[353409764,1739818242761,-431.26079106,0.00013863,2]
[353409766,1739818242772,-500.0,0.00013863,2]
[353409768,1739818242782,-183.15,0.00013863,2]
[353409770,1739818242791,-155.93,0.00013863,2]
[353409772,1739818242802,-501.05,0.00013863,2]
[353409774,1739818242811,-500.0,0.00013863,2]
[353409776,1739818242821,-500.0,0.00013863,2]
[353409778,1739818242831,-500.0,0.00013863,2]
[353409780,1739818242842,-500.0,0.00013863,2]
[353409782,1739818242852,-500.0,0.00013863,2]
[353409784,1739818242862,-500.0,0.00013863,2]
[353409786,1739818242873,-500.0,0.00013863,2]
[353409788,1739818242883,-500.0,0.00013863,2]
[353409790,1739818242893,-490.76,0.00013863,2]
[353409793,1739818242904,-500.0,0.00013863,2]
[353409794,1739818242914,-629.73,0.00013863,2]
[353409797,1739818242925,-545.92,0.00013863,2]
[353409798,1739818242934,-500.0,0.00013863,2]
[353409800,1739818242944,-500.0,0.00013863,2]
[353409802,1739818242954,-500.0,0.00013863,2]
[353409804,1739818242964,-500.0,0.00013863,2]
[353409807,1739818242973,-500.0,0.00013863,2]
[353409809,1739818242986,-500.0,0.00013863,2]
[353409811,1739818242995,-488.39,0.00013863,2]
[353409813,1739818243005,-500.0,0.00013863,2]
[353409815,1739818243014,-614.31,0.00013863,2]
[353409817,1739818243024,-500.0,0.00013863,2]
[353409818,1739818243034,-513.25,0.00013863,2]
[353409821,1739818243044,-500.0,0.00013863,2]
[353409822,1739818243055,-500.0,0.00013863,2]
[353409824,1739818243066,-500.0,0.00013863,2]
[353409826,1739818243076,-548.83,0.00013863,2]
[353409829,1739818243087,-500.0,0.00013863,2]
[353409830,1739818243097,-500.0,0.00013863,2]
[353409833,1739818243108,-610.23,0.00013863,2]
[353409835,1739818243118,-500.0,0.00013863,2]
[353409837,1739818243132,-500.0,0.00013863,2]
[353409838,1739818243142,-1487.6,0.00013863,2]
[353409841,1739818243152,-500.0,0.00013863,2]
[353409843,1739818243162,-500.0,0.00013863,2]
[353409844,1739818243172,-541.8,0.00013863,2]
[353409847,1739818243183,-678.49,0.00013863,2]
[353409849,1739818243201,-620.69,0.00013863,2]
[353409852,1739818243214,-500.0,0.00013863,2]
[353409854,1739818243225,-809.39,0.00013863,2]
[353409856,1739818243235,-500.0,0.00013863,2]
[353409858,1739818243246,-563.77,0.00013863,2]
[353409860,1739818243257,-500.0,0.00013863,2]
[353409862,1739818243267,-500.0,0.00013863,2]
[353409864,1739818243277,-584.35,0.00013863,2]
[353409866,1739818243288,-531.61,0.00013863,2]
[353409869,1739818243299,-500.0,0.00013863,2]
[353409871,1739818243309,-1007.19,0.00013863,2]
[353409873,1739818243320,-959.88,0.00013863,2]
[353409875,1739818243331,-500.0,0.00013863,2]
[353409877,1739818243342,-500.0,0.00013863,2]
[353409879,1739818243352,-289.27625837,0.00013863,2]
[353409881,1739818243363,-500.0,0.00013863,2]
[353409883,1739818243374,-596.38,0.00013863,2]
[353409885,1739818243384,-532.61,0.00013863,2]
[353409887,1739818243394,-500.0,0.00013863,2]
[353409889,1739818243404,-500.0,0.00013863,2]
[353409891,1739818243417,-1148.98,0.00013863,2]
[353409893,1739818243430,-500.0,0.00013863,2]
[353409895,1739818243440,-654.91,0.00013863,2]
[353409897,1739818243451,-500.0,0.00013863,2]
[353409900,1739818243462,-670.94,0.00013863,2]
[353409902,1739818243472,-500.0,0.00013863,2]
[353409904,1739818243482,-986.68,0.00013863,2]
[353409906,1739818243493,-709.94,0.00013863,2]
[353409908,1739818243504,-500.0,0.00013863,2]
[353409910,1739818243514,-627.05,0.00013863,2]
[353409912,1739818243524,-616.94,0.00013863,2]
[353409914,1739818243534,-500.0,0.00013863,2]
[353409916,1739818243544,-500.0,0.00013863,2]
[353409918,1739818243554,-500.0,0.00013863,2]
[353409920,1739818243564,-500.0,0.00013863,2]
[353409922,1739818243574,-510.34,0.00013863,2]
[353409924,1739818243584,-962.35,0.00013863,2]
[353409926,1739818243594,-500.0,0.00013863,2]
[353409928,1739818243604,-763.76,0.00013863,2]
[353409930,1739818243614,-500.0,0.00013863,2]
[353409932,1739818243624,-917.81,0.00013863,2]
[353409934,1739818243634,-864.55,0.00013863,2]
[353409936,1739818243643,-625.13,0.00013863,2]
[353409938,1739818243653,-583.43,0.00013863,2]
[353409940,1739818243663,-500.0,0.00013863,2]
[353409942,1739818243674,-532.14,0.00013863,2]
[353409944,1739818243684,-895.3,0.00013863,2]
[353409946,1739818243694,-500.0,0.00013863,2]
[353409948,1739818243704,-799.84,0.00013863,2]
[353409950,1739818243714,-500.0,0.00013863,2]
[353409952,1739818243727,-500.0,0.00013863,2]
[353409954,1739818243736,-500.0,0.00013863,2]
[353409956,1739818243746,-500.0,0.00013863,2]
[353409958,1739818243755,-500.0,0.00013863,2]
[353409960,1739818243765,-500.0,0.00013863,2]
[353409962,1739818243775,-500.0,0.00013863,2]
[353409964,1739818243784,-500.0,0.00013863,2]
[353409967,1739818243794,-577.87,0.00013863,2]
[353409969,1739818243804,-605.01064536,0.00013863,2]
[353409970,1739818243813,-500.0,0.00013863,2]
[353409972,1739818243822,-500.0,0.00013863,2]
[353409974,1739818243832,-500.0,0.00013863,2]
[353409977,1739818243842,-500.0,0.00013863,2]
[353409979,1739818243852,-500.0,0.00013863,2]
[353409981,1739818243862,-500.0,0.00013863,2]
[353409982,1739818243872,-1059.47,0.00013863,2]
[353409984,1739818243882,-500.0,0.00013863,2]
[353409987,1739818243892,-500.0,0.00013863,2]
[353409989,1739818243901,-500.0,0.00013863,2]
[353409991,1739818243910,-490.63,0.00013863,2]
[353409993,1739818243920,-150.0,0.00013885,2]
[353409995,1739818243929,-150.0,0.00013885,2]
[353409997,1739818243939,-5713.77464163,0.00013885,2]
[353409999,1739818243949,-2000.0,0.000139,2]
[353410001,1739818243958,-3200.0,0.000139,5]
[353410002,1739818243967,-150.0,0.0001393,2]
[353410004,1739818243977,-648.63,0.00013944,2]
[353410006,1739818243986,-877.51,0.00013944,2]
[353410008,1739818243996,-835.55,0.00013944,2]
[353410010,1739818244005,-500.0,0.00013944,2]
[353410012,1739818244015,-500.0,0.00013944,2]
[353410014,1739818244025,-500.0,0.00013944,2]
[353410017,1739818244035,-267.133275,0.00013944,2]
[353410019,1739818244045,-500.0,0.00013944,2]
[353410022,1739818244055,-500.0,0.00013944,2]
[353410024,1739818244065,-511.66,0.00013944,2]
[353410026,1739818244074,-500.0,0.00013944,2]
[353410028,1739818244084,-237.263123,0.00013944,2]
[353410030,1739818244094,-733.16,0.00013944,2]
[353410032,1739818244104,-509.44,0.00013944,2]
[353410034,1739818244113,-513.78,0.00013944,2]
[353410036,1739818244125,-695.75,0.00013944,2]
[353410038,1739818244134,-2251.93,0.00013944,2]
[353410040,1739818244144,-500.0,0.00013944,2]
[353410042,1739818244154,-533.48,0.00013944,2]
[353410044,1739818244163,-687.19,0.00013944,2]
[353410046,1739818244172,-556.4,0.00013944,2]
[353410048,1739818244181,-703.47,0.00013944,2]
[353410050,1739818244191,-500.0,0.00013944,2]
[353410051,1739818244200,-1124.34,0.00013944,2]
[353410054,1739818244210,-733.4,0.00013944,2]
[353410056,1739818244219,-520.15,0.00013944,2]
[353410058,1739818244229,-860.18,0.00013944,2]
[353410060,1739818244238,-500.0,0.00013944,2]
[353410062,1739818244248,-787.46,0.00013944,2]
[353410064,1739818244257,-500.0,0.00013945,2]
[353410066,1739818244266,-500.0,0.00013945,2]
[353410068,1739818244275,-500.0,0.00013945,2]
[353410070,1739818244285,-574.36,0.00013945,2]
[353410071,1739818244294,-353.9252694,0.00013945,2]
[353410072,1739818244304,-193.09545074,0.00013945,2]
[353410073,1739818244313,-500.0,0.00013945,2]
[353410074,1739818244323,-500.0,0.00013945,2]
[353410075,1739818244332,-500.0,0.00013945,2]
[353410076,1739818244342,-221.01159979,0.00013945,2]
[353410077,1739818244351,-500.0,0.00013945,2]
[353410078,1739818244361,-500.0,0.00013945,2]
[353410079,1739818244370,-500.0,0.00013945,2]
[353410081,1739818244381,-500.0,0.00013945,2]
[353410083,1739818244390,-500.0,0.00013945,2]
[353410085,1739818244400,-500.0,0.00013945,2]
[353410087,1739818244410,-500.0,0.00013945,2]
[353410089,1739818244421,-500.0,0.00013945,2]
[353410091,1739818244430,-500.0,0.00013945,2]
[353410093,1739818244439,-500.0,0.00013945,2]
[353410095,1739818244449,-500.0,0.00013945,2]
[353410097,1739818244458,-501.05,0.00013945,2]
[353410099,1739818244468,-500.0,0.00013945,2]
[353410101,1739818244477,-500.0,0.00013945,2]
[353410103,1739818244486,-500.0,0.00013945,2]
[353410105,1739818244496,-500.0,0.00013945,2]
[353410107,1739818244505,-549.17,0.00013945,2]
[353410109,1739818244515,-500.0,0.00013945,2]
[353410111,1739818244524,-500.0,0.00013945,2]
[353410113,1739818244534,-500.0,0.00013945,2]
[353410115,1739818244543,-500.0,0.00013945,2]
[353410117,1739818244552,-500.0,0.00013945,2]
[353410119,1739818244562,-500.0,0.00013945,2]
[353410121,1739818244571,-500.0,0.00013945,2]
[353410122,1739818244581,-500.0,0.00013945,2]
[353410125,1739818244592,-415.71,0.00013945,2]
[353410127,1739818244601,-500.0,0.00013945,2]
[353410128,1739818244611,-542.46,0.00013945,2]
[353410131,1739818244621,-500.0,0.00013945,2]
[353410132,1739818244633,-513.25,0.00013945,2]
[353410134,1739818244642,-500.0,0.00013945,2]
[353410136,1739818244652,-500.0,0.00013945,2]
[353410139,1739818244662,-500.0,0.00013945,2]
[353410141,1739818244671,-548.83,0.00013945,2]
[353410143,1739818244681,-500.0,0.00013945,2]
[353410145,1739818244691,-500.0,0.00013945,2]
[353410147,1739818244700,-610.23,0.00013945,2]
[353410149,1739818244710,-500.0,0.00013945,2]
[353410151,1739818244720,-500.0,0.00013945,2]
[353410153,1739818244730,-1487.6,0.00013945,2]
[353410155,1739818244739,-500.0,0.00013945,2]
[353410157,1739818244749,-500.0,0.00013945,2]
[353410159,1739818244758,-541.8,0.00013945,2]
[353410160,1739818244767,-678.49,0.00013945,2]
[353410162,1739818244777,-620.69,0.00013945,2]
[353410164,1739818244787,-500.0,0.00013945,2]
[353410167,1739818244796,-809.39,0.00013945,2]
[353410169,1739818244806,-500.0,0.00013945,2]
[353410170,1739818244815,-563.77,0.00013945,2]
[353410172,1739818244825,-500.0,0.00013945,2]
[353410175,1739818244835,-356.3629638,0.00013945,2]
[353410176,1739818244844,-584.35,0.00013945,2]
[353410178,1739818244854,-531.61,0.00013945,2]
[353410180,1739818244863,-500.0,0.00013945,2]
[353410182,1739818244873,-1007.19,0.00013945,2]
[353410184,1739818244883,-959.88,0.00013945,2]
[353410186,1739818244893,-500.0,0.00013945,2]
[353410188,1739818244903,-500.0,0.00013945,2]
[353410190,1739818244912,-500.0,0.00013945,2]
[353410192,1739818244922,-596.38,0.00013945,2]
[353410194,1739818244931,-532.61,0.00013945,2]
[353410197,1739818244941,-500.0,0.00013945,2]
[353410198,1739818244951,-500.0,0.00013945,2]
[353410200,1739818244961,-1148.98,0.00013945,2]
[353410202,1739818244970,-500.0,0.00013945,2]
[353410204,1739818244979,-654.91,0.00013945,2]
[353410206,1739818244989,-500.0,0.00013945,2]
[353410208,1739818244998,-670.94,0.00013945,2]
[353410210,1739818245007,-500.0,0.00013945,2]
[353410212,1739818245017,-986.68,0.00013945,2]
[353410214,1739818245027,-709.94,0.00013945,2]
[353410216,1739818245036,-500.0,0.00013945,2]
[353410218,1739818245046,-627.05,0.00013945,2]
[353410220,1739818245056,-616.94,0.00013945,2]
[353410222,1739818245066,-500.0,0.00013945,2]
[353410224,1739818245077,-500.0,0.00013945,2]
[353410226,1739818245087,-500.0,0.00013945,2]
[353410228,1739818245097,-500.0,0.00013945,2]
[353410230,1739818245107,-510.34,0.00013945,2]
[353410232,1739818245117,-962.35,0.00013945,2]
[353410234,1739818245128,-500.0,0.00013945,2]
[353410236,1739818245139,-763.76,0.00013945,2]
[353410245,1739818245203,-500.0,0.00013945,2]
[353410247,1739818245212,-917.81,0.00013945,2]
[353410249,1739818245222,-864.55,0.00013945,2]
[353410251,1739818245231,-625.13,0.00013945,2]
[353410253,1739818245240,-583.43,0.00013945,2]
[353410256,1739818245250,-500.0,0.00013945,2]
[353410258,1739818245259,-532.14,0.00013945,2]
[353410260,1739818245269,-895.3,0.00013945,2]
[353410262,1739818245278,-500.0,0.00013945,2]
[353410264,1739818245287,-799.84,0.00013945,2]
[353410265,1739818245296,-500.0,0.00013945,2]
[353410269,1739818245305,-500.0,0.00013945,2]
[353410271,1739818245314,-500.0,0.00013945,2]
[353410274,1739818245324,-500.0,0.00013945,2]
[353410277,1739818245333,-500.0,0.00013945,2]
[353410280,1739818245342,-500.0,0.00013945,2]
[353410283,1739818245351,-500.0,0.00013945,2]
[353410286,1739818245360,-500.0,0.00013945,2]
[353410289,1739818245369,-577.87,0.00013945,2]
[353410292,1739818245378,-500.0,0.00013945,2]
[353410295,1739818245387,-500.0,0.00013945,2]
[353410298,1739818245397,-500.0,0.00013945,2]
[353410300,1739818245406,-500.0,0.00013945,2]
[353410302,1739818245416,-500.0,0.00013945,2]
[353410304,1739818245429,-500.0,0.00013945,2]
[353410307,1739818245438,-1059.47,0.00013945,2]
[353410310,1739818245448,-500.0,0.00013945,2]
[353410312,1739818245457,-500.0,0.00013945,2]
[353410315,1739818245468,-500.0,0.00013945,2]
[353410317,1739818245478,-150.0,0.00013984,2]
[353410319,1739818245487,-2000.0,0.00014026,2]
[353410321,1739818245496,-648.63,0.00014026,2]
[353410323,1739818245506,-877.51,0.00014026,2]
[353410325,1739818245515,-835.55,0.00014026,2]
[353410327,1739818245524,-500.0,0.00014026,2]
[353410329,1739818245534,-500.0,0.00014026,2]
[353410331,1739818245542,-500.0,0.00014026,2]
[353410333,1739818245552,-267.133275,0.00014026,2]
[353410335,1739818245561,-500.0,0.00014026,2]
[353410337,1739818245571,-500.0,0.00014026,2]
[353410339,1739818245580,-511.66,0.00014026,2]
[353410341,1739818245588,-500.0,0.00014026,2]
[353410342,1739818245597,-237.263123,0.00014026,2]
[353410344,1739818245607,-733.16,0.00014026,2]
[353410346,1739818245616,-509.44,0.00014026,2]
[353410348,1739818245627,-513.78,0.00014026,2]
[353410350,1739818245637,-695.75,0.00014026,2]
[353410352,1739818245647,-2251.93,0.00014026,2]
[353410354,1739818245656,-500.0,0.00014026,2]
[353410356,1739818245664,-533.48,0.00014026,2]
[353410358,1739818245674,-687.19,0.00014026,2]
[353410360,1739818245683,-556.4,0.00014026,2]
[353410362,1739818245693,-703.47,0.00014026,2]
[353410364,1739818245702,-500.0,0.00014026,2]
[353410366,1739818245711,-1124.34,0.00014026,2]
[353410368,1739818245720,-733.4,0.00014026,2]
[353410370,1739818245729,-520.15,0.00014026,2]
[353410372,1739818245738,-860.18,0.00014026,2]
[353410374,1739818245748,-500.0,0.00014026,2]
[353410376,1739818245757,-787.46,0.00014026,2]
[353410378,1739818245766,-500.0,0.00014027,2]
[353410380,1739818245775,-500.0,0.00014027,2]
[353410382,1739818245785,-500.0,0.00014027,2]
[353410384,1739818245793,-574.36,0.00014027,2]
[353410386,1739818245803,-500.0,0.00014027,2]
[353410388,1739818245812,-500.0,0.00014027,2]
[353410390,1739818245821,-500.0,0.00014027,2]
[353410392,1739818245830,-500.0,0.00014027,2]
[353410394,1739818245840,-500.0,0.00014027,2]
[353410396,1739818245849,-500.0,0.00014027,2]
[353410398,1739818245858,-500.0,0.00014027,2]
[353410400,1739818245867,-500.0,0.00014027,2]
[353410401,1739818245877,-500.0,0.00014027,2]
[353410404,1739818245886,-500.0,0.00014027,2]
[353410405,1739818245896,-500.0,0.00014027,2]
[353410406,1739818245905,-500.0,0.00014027,2]
[353410407,1739818245915,-500.0,0.00014027,2]
[353410408,1739818245924,-618.76675838,0.00014027,2]
[353410409,1739818245933,-501.05,0.00014027,2]
[353410410,1739818245942,-500.0,0.00014027,2]
[353410411,1739818245951,-500.0,0.00014027,2]
[353410412,1739818245961,-500.0,0.00014027,2]
[353410413,1739818245970,-500.0,0.00014027,2]
[353410415,1739818245979,-491.82,0.00014027,2]
[353410417,1739818245988,-500.0,0.00014027,2]
[353410419,1739818245997,-500.0,0.00014027,2]
[353410421,1739818246006,-500.0,0.00014027,2]
[353410423,1739818246015,-500.0,0.00014027,2]
[353410425,1739818246024,-500.0,0.00014027,2]
[353410427,1739818246033,-500.0,0.00014027,2]
[353410428,1739818246043,-500.0,0.00014027,2]
[353410430,1739818246052,-500.0,0.00014027,2]
[353410432,1739818246061,-500.0,0.00014027,2]
[353410434,1739818246070,-513.25,0.00014027,2]
[353410436,1739818246079,-500.0,0.00014027,2]
[353410438,1739818246089,-500.0,0.00014027,2]
[353410440,1739818246097,-500.0,0.00014027,2]
[353410442,1739818246107,-548.83,0.00014027,2]
[353410444,1739818246115,-500.0,0.00014027,2]
[353410446,1739818246125,-500.0,0.00014027,2]
[353410448,1739818246135,-610.23,0.00014027,2]
[353410450,1739818246144,-500.0,0.00014027,2]
[353410452,1739818246154,-500.0,0.00014027,2]
[353410454,1739818246163,-1487.6,0.00014027,2]
[353410456,1739818246172,-500.0,0.00014027,2]
[353410458,1739818246182,-500.0,0.00014027,2]
[353410460,1739818246192,-541.8,0.00014027,2]
[353410462,1739818246201,-678.49,0.00014027,2]
[353410464,1739818246210,-620.69,0.00014027,2]
[353410466,1739818246220,-500.0,0.00014027,2]
[353410468,1739818246229,-809.39,0.00014027,2]
[353410470,1739818246238,-500.0,0.00014027,2]
[353410472,1739818246248,-563.77,0.00014027,2]
[353410474,1739818246257,-500.0,0.00014027,2]
[353410476,1739818246267,-584.35,0.00014027,2]
[353410478,1739818246276,-500.0,0.00014027,2]
[353410480,1739818246286,-531.61,0.00014027,2]
[353410482,1739818246295,-1007.19,0.00014027,2]
[353410484,1739818246305,-959.88,0.00014027,2]
[353410486,1739818246315,-500.0,0.00014027,2]
[353410488,1739818246325,-500.0,0.00014027,2]
[353410490,1739818246334,-500.0,0.00014027,2]
[353410492,1739818246344,-596.38,0.00014027,2]